Cogmind - Beta 16 --- EXPLORER MODE // 2026.01.09 @ 13:05:15 Player: K.K.Y. Result: Destroyed by as-42091 with Assembled Heavy Rifle Performance ------------- Evolutions (0) 0 Regions Visited (2) 400 Robots Destroyed (18) 90 Value Destroyed (242) 242 Prototype IDs (0) 0 Alien Tech Used (0) 0 Bonus (0) 0 TOTAL SCORE: 732 Bonus ------- None Cogmind --------- Core Integrity 0/250 Matter 300/300 Energy 100/100 System Corruption 0% Temperature Cool (0) Movement Rolling (100) Location -10/Mines Parts ------- > --- POWER (1) -------- (None) > --- PROPULSION (2) --- Compact Wheel > --- UTILITY (3) ------ Medium Storage Unit > --- WEAPON (2) ------- (None) > --- INVENTORY (10) --- Ion Engine Improved Heat Sink High-capacity Storage Unit Huge Storage Unit Cargo Storage Unit Improved Terrain Scanner Seismic Detector Mining Laser Peak State ------------ > --- POWER ------------ Light Nuclear Core > --- PROPULSION ------- Wheel Wheel > --- UTILITY ---------- Medium Storage Unit Structural Scanner Core Shielding > --- WEAPON ----------- Medium Laser Beam Cannon > --- INVENTORY -------- Ion Engine High-capacity Storage Unit Huge Storage Unit Cargo Storage Unit Improved Terrain Scanner Seismic Detector Mining Laser [Rating: 11] Favorites ----------- Power Light Nuclear Core Engine Ion Engine Power Core Light Nuclear Core Propulsion Wheel Treads Light Treads Wheel Wheel Utility Core Shielding Device Structural Scanner Storage Medium Storage Unit Protection Core Shielding Weapon Light Assault Rifle Energy Gun Medium Laser Energy Cannon Beam Cannon Ballistic Gun Light Assault Rifle Build | -11 -10 -10 ------- Run | Yrd Mat Min Slots Evolved 1 | . 1 . Power . | . . . Propulsion . | . . . Utility 1 | . 1 . Weapon . | . . . Parts Attached 18 | 10 7 1 Power 2 | 1 1 . Engine 1 | 1 . . Core 1 | . 1 . Reactor . | . . . Propulsion 7 | 5 1 1 Treads 2 | 2 . . Leg . | . . . Wheel 5 | 3 1 1 Hover . | . . . Flight . | . . . Utility 5 | 2 3 . Device 1 | . 1 . Storage 2 | . 2 . Processor . | . . . Hackware . | . . . Protection 2 | 2 . . Artifact . | . . . Weapon 4 | 2 2 . Energy Gun 1 | . 1 . Energy Cannon 1 | . 1 . Ballistic Gun 2 | 2 . . Ballistic Cannon . | . . . Launcher . | . . . Special Weapon . | . . . Impact Weapon . | . . . Slashing Weapon . | . . . Piercing Weapon . | . . . Special Melee Weapon . | . . . Unidentified Prototypes . | . . . Parts Lost 7 | . . 7 Power 1 | . . 1 Propulsion 2 | . . 2 Utility 2 | . . 2 Weapon 2 | . . 2 Highest Loss Streak 3 | . . 3 To Critical Strikes . | . . . Average Backups 5 | 3 5 7 Power . | . . 1 Propulsion . | . . . Utility 4 | 2 4 5 Weapon . | . 1 1 Tool/Special . | . . . Unused Backups 7 | . . 7 Power 1 | . . 1 Propulsion . | . . . Utility 5 | . . 5 Weapon 1 | . . 1 Tool/Special . | . . . Average Slot Usage (%) 85 | . 94 72 Engine 1 | . 2 . Core 6 | . 8 2 Wheel 22 | . 24 21 Device 9 | . 10 9 Storage 6 | . 3 12 Protection 17 | . 21 11 Energy Gun 4 | . . 11 Energy Cannon 2 | . 2 2 Ballistic Gun 11 | . 19 . Peak Build Rating 11 | 7 11 11 Average Rating 8 | 6 9 7 On Entrance 6 | . 7 11 Avg Prop Armor Cover (%) . | . . . Naked Turns . | . . . Heaviest Build 22 | 10 22 22 Greatest Support 40 | 40 20 20 Greatest Overweight (x) 4 | 1 3 4 Average Overweight (x) . | . . . Largest Inventory Capacity 20 | 5 20 10 Average Capacity 7 | 5 6 10 Most Carried 10 | 5 10 10 Average Carried 6 | 3 5 8 Final Capacity 10 | 5 10 10 Final Carried 9 | 4 8 9 Class Distribution -------------------- 100% | Hacker-Mutant Dominant Class ---------------- Hacker-Mutant | -10/Materials Hacker-Mutant | -10/Mines Resources | -11 -10 -10 ----------- Run | Yrd Mat Min Matter Collected 598 | 279 314 5 Remotely . | . . . Salvage Created 670 | 161 259 250 Parts 38 | 13 15 10 Haulers Intercepted 2 | . 2 . Recyclers Shooed 1 | . . 1 Parts Field Recycled . | . . . Retrieved Matter . | . . . Parts Self-Destructed . | . . . Prevented . | . . . Parts Restored . | . . . Kills | -11 -10 -10 ------- Run | Yrd Mat Min Combat Hostiles Destroyed 13 | . 4 9 Guns 11 | . 4 7 Cannons 2 | . . 2 Classes Destroyed 9 | 3 5 1 Worker 3 | 1 . 2 Builder 2 | . 1 1 Tunneler 3 | 3 . . Hauler 2 | . 2 . Recycler 1 | 1 . . Watcher 1 | . 1 . Swarmer 2 | . 2 . Grunt 4 | . 2 2 Assembled 7 | . . 7 Best Kill Streak 8 | 2 2 8 Combat Bots Only 7 | . 2 7 Max Kills in Single Turn 1 | 1 1 1 Gunslinging . | . . . Exploded . | . . . Melee . | . . . Uniques/NPCs Destroyed . | . . . Combat | -11 -10 -10 -------- Run | Yrd Mat Min Hostile Shots Fired 77 | . 7 70 Missed 20 | . 3 17 Hits 57 | . 4 53 Melee 4 | . . 4 Projectile 53 | . 4 49 AOE 10 | . . 10 Critical Strikes 2 | . . 2 Actively Blocked 1 | . . 1 Damage Taken 704 | . 21 683 Core 252 | . 8 244 Absorbed by Shields . | . . . Redirected to Shielding 37 | . 1 36 Ignored by Resistances 427 | . 14 413 Core Remaining (%) 100 | 100 . . Volleys Fired 69 | 10 24 35 Largest 2 | 2 2 2 Hottest 110 | 40 80 110 Shots Fired 109 | 20 48 41 Gun 102 | 20 47 35 Cannon 7 | . 1 6 Launcher . | . . . Special . | . . . Kinetic 67 | 20 47 . Thermal 42 | . 1 41 Explosive . | . . . Electromagnetic . | . . . Robot Hit Streak 18 | 5 14 18 Robot Miss Streak 3 | 1 2 3 Penetration Max . | . . . Secondary Targets . | . . . Shots Hit Robots 82 | 12 39 31 Core Hits 41 | 7 16 18 Critical Kills 1 | . . 1 Critical Parts Destroyed 1 | 1 . . Critical Strikes 2 | 1 . 1 Meltdown 1 | . . 1 Destroy 1 | 1 . . Melee Attacks . | . . . Impact . | . . . Slashing . | . . . Piercing . | . . . Sneak Attacks . | . . . Combat Hostiles . | . . . Follow-up Attacks . | . . . Damage Inflicted 1013 | 134 427 452 Guns 888 | 134 409 345 Cannons 125 | . 18 107 Explosions . | . . . Melee . | . . . Ramming . | . . . Kinetic 543 | 134 409 . Thermal 470 | . 18 452 Explosive . | . . . Electromagnetic . | . . . Impact . | . . . Slashing . | . . . Piercing . | . . . Highest Corruption . | . . . Average Corruption . | . . . Corruption Purged . | . . . Corruption Blocked . | . . . Overload Shots . | . . . Overflow Damage . | . . . Projectiles . | . . . Explosions . | . . . Melee . | . . . Knockbacks . | . . . Impact . | . . . Kinetic . | . . . Secondary . | . . . Self-Inflicted Damage . | . . . Shots . | . . . Rammed . | . . . Targets Rammed . | . . . Kicked . | . . . Crushed . | . . . Highest Temperature 243 | . 44 243 Average Temperature 69 | . 6 101 Received Heat Transfer 55 | . 6 49 Siege Activations . | . . . Martial Activations . | . . . Shielding Activations . | . . . Robots Disrupted . | . . . Combat Hostiles . | . . . Robots Corrupted . | . . . Combat Hostiles . | . . . Parts Fried . | . . . Impact Corruptions . | . . . Robots Melted 1 | . . 1 Combat Hostiles . | . . . Parts Melted 3 | . . 3 Heat Transferred 1295 | . 37 1258 Parts Sabotaged . | . . . Parts Stolen . | . . . Parts Stripped . | . . . Power Chain Reactions . | . . . Alert | -11 -10 -10 ------- Run | Yrd Mat Min Maximum Alert Level . | . . . Low Security (%) 100 | 100 100 100 Level 1 . | . . . Level 2 . | . . . Level 3 . | . . . Level 4 . | . . . Level 5 . | . . . High Security . | . . . Max Security . | . . . Peak Influence 55 | 10 50 55 Initial . | . . . Average 3 | 1 3 4 Influence Increases 261 | 25 156 80 Destroy 0b10 Robot/C 120 | . 80 40 Destroy 0b10 Robot/NC 60 | 25 20 15 Destroy Leader 36 | . 26 10 Lose Combat Pursuer 45 | . 30 15 Influence Decreases 261 | 25 156 80 Time Decay 241 | 25 156 60 Lost Part 20 | . . 20 Squads Dispatched . | . . . Investigation . | . . . Extermination . | . . . Reinforcement . | . . . Assault . | . . . Garrison . | . . . Intercept . | . . . Searches Triggered . | . . . Construction Impeded . | . . . Haulers Reinforced . | . . . Active Scanning Responses . | . . . Cargo Convoy Interrupts . | . . . Stealth | -11 -10 -10 --------- Run | Yrd Mat Min Distress Signals 2 | . 2 . Communications Jammed . | . . . Distress Signals . | . . . Times Spotted 25 | . 11 14 Peak Tracking Total 4 | . 4 4 Tactical Retreats 3 | . 2 1 Traps | -11 -10 -10 ------- Run | Yrd Mat Min Traps Triggered 4 | . 4 . Indirectly . | . . . Trap Hack Attempts . | . . . Triggered . | . . . Disarmed . | . . . Reprogrammed . | . . . Reused . | . . . Traps Extracted . | . . . Installed . | . . . Triggered . | . . . Machines | -11 -10 -10 ---------- Run | Yrd Mat Min Machines Disabled . | . . . Max in Single Turn . | . . . Machines Repaired . | . . . Machines Dismantled . | . . . Machines Sabotaged . | . . . Overloaded Fab Kills . | . . . Hacking | -11 -10 -10 --------- Run | Yrd Mat Min Machines Accessed . | . . . Terminals . | . . . Fabricators . | . . . Repair Stations . | . . . Recycling Units . | . . . Scanalyzers . | . . . Garrison Access . | . . . Total Hacks . | . . . Successful . | . . . Failed . | . . . Catastrophic . | . . . Database Lockouts . | . . . Manual . | . . . Terminals . | . . . Fabricators . | . . . Repair Stations . | . . . Recycling Units . | . . . Scanalyzers . | . . . Garrison Access . | . . . Terminal Hacks . | . . . Fabricator Hacks . | . . . Repair Station Hacks . | . . . Recycling Unit Hacks . | . . . Scanalyzer . | . . . Garrison Access Hacks . | . . . Unauthorized Hacks . | . . . Terminals . | . . . Fabricators . | . . . Repair Stations . | . . . Recycling Units . | . . . Scanalyzers . | . . . Garrison Access . | . . . Data Cores Recovered . | . . . Used . | . . . Hacking Detections . | . . . Full Trace Events . | . . . Feedback Events . | . . . Feedback Blocked . | . . . Robot Schematics Acquired . | . . . Robots Built . | . . . Authchips . | . . . Time . | . . . Total Robot Build Rating . | . . . Part Schematics Acquired . | . . . Parts Built . | . . . Authchips . | . . . Time . | . . . Total Part Build Rating . | . . . Part Studies Acquired . | . . . Parts Repaired . | . . . Time . | . . . Parts Recycled . | . . . Recycled Matter . | . . . Retrieved Matter . | . . . Retrieved Components . | . . . Parts Scanalyzed . | . . . Part Schematics Acquired . | . . . Parts Damaged . | . . . Bothacking | -11 -10 -10 ------------ Run | Yrd Mat Min Used RIF Installer . | . . . Robots Hacked . | . . . Non-combat . | . . . Combat . | . . . Robot Hacks Applied . | . . . Relay Couplers Released . | . . . Fabnet Peak Effective % . | . . . Robots Rewired . | . . . Allies Hacked . | . . . Hacks Repelled . | . . . Allies | -11 -10 -10 -------- Run | Yrd Mat Min Total Allies . | . . . Largest Group . | . . . Highest-Rated Group . | . . . Highest-Rated Ally . | . . . Total Orders . | . . . Ally Attacks . | . . . Total Damage . | . . . Kills . | . . . Allies Corrupted . | . . . Allies Melted . | . . . Intel | -11 -10 -10 ------- Run | Yrd Mat Min Active Infowar (turns) 1147 | . 704 443 Structural 1147 | . 704 443 Robot Analysis Total . | . . . Derelict Logs Recovered . | . . . Drone Launches . | . . . Drone Recoveries . | . . . Exploration | -11 -10 -10 ------------- Run | Yrd Mat Min Turns Passed 1605 | 225 835 545 Spaces Moved 1232 | 134 802 296 Core 36 | 14 9 13 Treads 68 | 68 . . Legs . | . . . Wheels 1128 | 52 793 283 Hover . | . . . Flight . | . . . Fastest Speed 50 | 50 80 80 Average Speed 90 | 124 83 92 Slowest Speed 250 | 160 200 250 Overloaded Moves . | . . . Propulsion Burnouts . | . . . Robots Hopped . | . . . Potential Cave-ins . | . . . Cave-ins Triggered . | . . . Exploration Rate (%) 47 | 7 95 39 Regions Visited 2 Branch Regions 1 Pre-discovered Areas . | . . . Known Exits Taken 2 | 1 1 . Unknown Exits Taken . | . . . Scrap Searched . | . . . Spaces Dug . | . . . Terrain Destroyed . | . . . Melee . | . . . Projectile . | . . . AOE . | . . . Terrain Rammed . | . . . Walls Destroyed . | . . . Machines Disabled . | . . . Actions | -11 -10 -10 --------- Run | Yrd Mat Min Total 1621 | 175 921 525 Wait 260 | 2 67 191 Move 1230 | 133 801 296 Hop . | . . . Pick Up 26 | 14 10 2 Fast Attach 6 | 1 5 . Attach 16 | 9 6 1 Detach 2 | 1 1 . Swap 5 | 1 4 . Drop 7 | 4 3 . Fire 69 | 10 24 35 Melee . | . . . Ram . | . . . Kick . | . . . Crush . | . . . Escape Stasis . | . . . Rewire . | . . . Trap . | . . . Miscellaneous . | . . . Route ------- -11/Scrapyard -10/Materials (discovered 6 exits: *Mat x3 / *Min x2 / Sub) -10/Mines (discovered 2 exits: *Mat x2) History --------- Turn | Location | Event 29 | -11/Scrapyard | Identified exit to Materials 29 | -11/Scrapyard | Discovered exit to Materials (range 16) 226 | -11/Scrapyard | Entered Materials 226 | -10/Materials | Evolved 1 slot: Utility x1 265 | -10/Materials | Identified exit to Materials 265 | -10/Materials | Discovered exit to Materials (range 16) 268 | -10/Materials | Met 8R-AWN 270 | -10/Materials | Identified exit to Mines 270 | -10/Materials | Discovered exit to Mines (range 12) 312 | -10/Materials | Build established: Hacker-Mutant 330 | -10/Materials | Discovered exit to Materials (range 15) 349 | -10/Materials | Discovered exit to Materials (range 16) 574 | -10/Materials | Discovered exit to Mines (range 13) 970 | -10/Materials | Identified exit to Subcaves 970 | -10/Materials | Discovered exit to Subcaves (range 5) 1061 | -10/Materials | Entered Mines 1062 | -10/Mines | Followed 8R-AWN into the Mines 1100 | -10/Mines | Discovered exit to Materials (range 16) 1149 | -10/Mines | Assembled infested the area 1154 | -10/Mines | Assisted by a Guerilla fighting off Assembled 1221 | -10/Mines | Received a Rocket Launcher from a helpful Derelict 1229 | -10/Mines | Discovered exit to Materials (range 6) 1553 | -10/Mines | Lost 3 parts (2n1u) 1567 | -10/Mines | Destroyed 7 combat bots 1573 | -10/Mines | Core integrity fell below 50% 1583 | -10/Mines | Core integrity fell below 20% 1606 | -10/Mines | Destroyed by as-42091 with Assembled Heavy Rifle Last Messages --------------- 01529_ K-01 Serf destroyed. 01530_ R-06 Scavenger system terminally corrupted. 01533_ as-06908 destroyed. 01541_ Knocked back. 01546_ as-23660 destroyed. 01548_ R-06 Scavenger collects Wheel. 01551_ The unstable cave ceiling collapses. 01551_ R-06 Scavenger collects Terrain Scanner. 01560_ Med. Laser destroyed. 01562_ K-01 Serf collects debris. 01569_ R-06 Scavenger destroyed. 01571_ K-01 Serf destroyed. 01579_ Acquired Com. Wheel. 01585_ Core Shielding destroyed. 01586_ K-01 Serf destroyed. 01586_ Acquired 5 matter. 01593_ K-01 Serf collects debris. 01599_ U-05 Engineer destroyed. 01603_ K-01 Serf destroyed. Map ----- +----------------------------------------------------+ | | | | | | | | | | | | | | | | | | | | | | | | | | | | | | | | | | | | | ?????????????????????????????????????????????????? | | ?????????????????????????????????????????????????? | | ?????????????????????????????????????????????????? | | ???????????????????????????????????????########### | | ????????????#######???????????????????############ | | ???????????############################## ###### | | ???????####### ####################### ! ##* | | ???########## @ ! %a %<= | | ??###### #### =% ! % | | ?#### ### ######################## # | | ?### ##### ##########################% # | | ### ####### ##??????????????????## # # | | ### ###?#### ##??????????????????## # # | | ## ######## ###??????????????????##### ## | | ## ####### ###??????????????????##### ### | | ## ##### ##?????????????????????####### | | ## ##### ##???????????????????????#### % | | ## #### ##????????????????????????####!%! | | ## ###?????????????????????????##% #= | | # ######?????????????????????????###### | | # ### #######???????????????????????????## % | | # ##?????????????#############???##=## | | # ##?????????????#############???## ## | | # #### ##??????????##### ####### ## | | # #### ########????##### < """ ####### ## | | ## #### #########???## """ ! | | ### ##### ## ####??## ## """ ####### | | ########### ####### ## ####### % | | ?########## ###### #############??## %% | | ???????## ] #### #############??# * = | | ???????## # #### ##?????????????!! ## | | ?????# # ###### ######????????????????### | +----------------------------------------------------+ Best States ------------- Heat Dissipation 25 Energy Generation 14 Energy Capacity 250 Matter Stores 300 Matter Capacity 300 Sight Range 16 Terrain Scan Density 10 Resistance: KI 35 Resistance: TH 35 Resistance: EX 35 Resistance: EM 35 Resistance: I 35 Resistance: S 35 Resistance: P 35 Core Shielding 20 Utility Shielding 33 Evasion (%) 44 Recoil Reduction 2 Offensive Hacking 20 Item Schematics ----------------- None Robot Schematics ------------------ None Fabricated ------------ Nothing Repaired ---------- Nothing Studied --------- None Alien Tech Used ----------------- None Achievements -------------- None Challenges ------------ None Game ------ Seed TrackerZeronetMultirail Manual? 0 Play Time 00:12:25 Cumulative 269.1 hours Start 2026.01.09 @ 12:55:48 End 2026.01.09 @ 13:05:15 Sessions 1 Manual Loads 0 Difficulty Explorer Special Mode None Game No. 421 Rogue 0 Adventurer 0 Explorer 421 Win Type - Total 0 Types 0/0/0/0/0/0/0/0/0/0 Lore% 72 Gallery% 69 Achievement% 54 Wizard Run 0 Options --------- Layout 1 ASCII 0 Keyboard 0 Movement Mouse Keybinds 1 Fullscreen 1 Font 24/Smallcaps Map View 50x35 Zoom Use 0% Tactical HUD 1 Map Filters NONE Filters NONE Steam 1 RUN: 25c9d6f3-941f-410c-be68-17596a8c1187